bitfinex/quotes_SOLUSD_20240918
["timestamp","ask_amount","ask_price","bid_price","bid_amount"]
[1726675661303,0.2910731,128.21,128.2,0.37647]
[1726675662402,0.2910731,128.21,128.06,9.72208673]
[1726675662403,39.0132,128.17,128.06,9.72208673]
[1726675662601,39.0132,128.17,128.05,0.2910731]
[1726675662602,7.8082,128.07,128.05,0.2910731]
[1726675662814,7.8069,128.1,128.05,0.2910731]
[1726675662995,7.8079,128.08,128.05,0.2910731]
[1726675663194,1.55966458,128.1,128.05,0.2910731]
[1726675663402,23.776884,128.11,128.05,0.2910731]
[1726675664215,7.8088,128.06,128.05,0.2910731]
[1726675665618,19.5175,128.1,128.05,0.2910731]
[1726675665797,7.8082,128.07,128.05,0.2910731]
[1726675666398,7.8088,128.06,128.05,0.2910731]
[1726675666794,19.5157,128.11,128.05,0.2910731]
[1726675666998,7.8086,128.07,128.05,0.2910731]
[1726675667502,7.8088,128.06,128.05,0.2910731]
[1726675670898,9.36846458,128.06,128.05,0.2910731]
[1726675671219,33.14534858,128.06,128.05,0.2910731]
[1726675671614,31.585684,128.06,128.05,0.2910731]
[1726675672528,7.8088,128.06,128.05,0.2910731]
[1726675673017,7.8083,128.07,128.05,0.2910731]
[1726675673237,7.8088,128.06,128.05,0.2910731]
[1726675675145,7.8083,128.07,128.05,0.2910731]
[1726675675822,7.8088,128.06,128.05,0.2910731]
[1726675678741,7.8086,128.07,128.05,0.2910731]
[1726675679243,7.8088,128.06,128.05,0.2910731]
[1726675681537,7.808,128.08,128.05,0.2910731]
[1726675681841,7.808,128.08,128.06,0.12549]
[1726675681842,7.8076,128.08,128.06,0.12549]
[1726675682031,7.8076,128.08,128.06,0.25098]
[1726675682223,7.8071,128.09,128.06,0.25098]
[1726675682841,14.7305,128.15,128.06,6.91358]
[1726675683044,19.508,128.16,128.09,0.12549]
[1726675683347,7.8043,128.14,128.11,0.25098]
[1726675683549,7.8035,128.15,128.11,0.25098]
[1726675683846,7.8035,128.15,128.11,8.05668]
[1726675684527,7.8031,128.16,128.12,7.93049]
[1726675684720,2.08157838,128.21,128.15,0.37647]
[1726675684920,1.55966458,128.2,128.15,0.25098]
[1726675685119,7.802,128.18,128.15,0.25098]
[1726675685550,7.801,128.19,128.15,0.25098]
[1726675685937,7.801,128.19,128.15,8.05428]
[1726675686141,7.801,128.19,128.15,7.8033]
[1726675686344,7.801,128.19,128.16,0.25098]
[1726675686946,7.801,128.19,128.15,0.25098]
[1726675688344,7.801,128.19,128.15,8.05418]
[1726675690143,8.0640562,128.2,128.16,0.12549]
[1726675690350,7.8009,128.19,128.17,0.25098]
[1726675690927,8.0641562,128.2,128.17,0.25098]
[1726675691858,0.2636562,128.2,128.17,1.81108564]
[1726675692154,8.0643562,128.2,128.17,1.81108564]
[1726675692331,8.0643562,128.2,128.17,0.25098]
[1726675692532,8.0643562,128.2,128.17,1.81108391]
[1726675693152,0.2636562,128.2,128.17,8.05288]
[1726675694237,0.2636562,128.2,128.18,0.12549]
[1726675694645,8.0639562,128.2,128.17,0.25098]
[1726675695052,0.2636562,128.2,128.18,0.12549]
[1726675695244,0.2636562,128.2,128.19,7.8009]
[1726675695449,0.2636562,128.2,128.19,0.12549]
[1726675695757,0.2636562,128.2,128.19,0.25098]
[1726675696053,0.2636562,128.2,128.19,0.37647]
[1726675697455,8.0642562,128.2,128.18,0.12549]
[1726675697630,8.0642562,128.2,128.17,0.25098]
[1726675697829,0.2636562,128.2,128.18,7.92659]
[1726675698245,0.2636562,128.2,128.19,8.05188]
[1726675698439,0.2636562,128.2,128.19,0.37647]
[1726675699667,0.2636562,128.2,128.19,0.12549]
[1726675700235,0.2636562,128.2,128.19,0.25098]
[1726675700433,0.2636562,128.2,128.18,0.25098]
[1726675701361,0.2636562,128.2,128.18,8.05238]
[1726675701851,0.2636562,128.2,128.19,8.17737]
[1726675702433,0.2636562,128.2,128.19,0.12549]
[1726675703450,0.2636562,128.2,128.18,0.25098]
[1726675703958,0.2636562,128.2,128.18,0.12549]
[1726675704755,7.8009,128.19,128.17,0.12549]
[1726675705059,0.2636562,128.2,128.17,7.92759]
[1726675705363,0.2636562,128.2,128.18,0.12549]
[1726675705872,0.2636562,128.2,128.19,0.12549]
[1726675706673,0.2636562,128.2,128.19,0.37647]
[1726675706871,0.2636562,128.2,128.19,9.73721955]
[1726675707561,0.2636562,128.2,128.19,39.77060355]
[1726675709350,0.2636562,128.2,128.19,38.210754]
[1726675710078,0.2636562,128.2,128.15,39.0141]
[1726675710079,7.8011,128.19,128.15,6.1872]
[1726675710569,7.8017,128.18,128.15,6.1872]
[1726675710968,0.2636562,128.2,128.16,1.56021291]
[1726675710969,7.8011,128.19,128.16,1.56021291]
[1726675711281,8.0641562,128.2,128.17,0.37647]
[1726675711475,8.0641562,128.2,128.15,6.1872]
[1726675711476,7.8015,128.18,128.15,6.1872]
[1726675711676,7.8015,128.18,128.16,0.25098]
[1726675712273,0.2636562,128.2,128.18,0.25098]
[1726675712869,0.2636562,128.2,128.19,0.12549]
[1726675713168,8.0639562,128.2,128.18,0.12549]
[1726675713658,8.0639562,128.2,128.18,1.6855145]
[1726675713860,7.8009,128.19,128.15,13.9903]
[1726675714564,8.0641562,128.2,128.16,9.36281619]
[1726675714755,8.0641562,128.2,128.16,7.8026]
[1726675715475,8.0641562,128.2,128.17,0.25098]
[1726675715686,8.0641562,128.2,128.17,1.81112375]
[1726675715859,8.0641562,128.2,128.17,0.25098]
[1726675717277,7.8012,128.19,128.17,0.25098]
[1726675717661,8.0641562,128.2,128.17,1.81112944]
[1726675717862,8.0641562,128.2,128.17,9.61302709]
[1726675718264,0.2636562,128.2,128.19,0.25098]
[1726675718468,0.2636562,128.2,128.19,8.17737]
[1726675720186,0.2636562,128.2,128.17,7.8017]
[1726675720370,0.2636562,128.2,128.18,1.55999089]
[1726675721785,0.2636562,128.2,128.19,0.37647]
[1726675722086,8.0639562,128.2,128.18,1.55975947]
[1726675722267,0.2636562,128.2,128.19,0.12549]
[1726675722584,0.2636562,128.2,128.18,0.12549]
[1726675722787,0.2636562,128.2,128.18,9.48684917]
[1726675723091,0.2636562,128.2,128.19,0.37647]
[1726675723291,0.2636562,128.2,128.19,8.17737]
[1726675725688,0.2636562,128.2,128.19,23.94087]
[1726675730470,0.2636562,128.2,128.19,97.717754]
[1726675737291,0.2636562,128.2,128.19,117.717754]
[1726675738986,0.2636562,128.2,128.19,7.8009]
[1726675739293,0.2636562,128.2,128.18,27.3047]
[1726675739500,0.2636562,128.2,128.18,19.5033]
[1726675739667,0.2636562,128.2,128.16,7.8026]
[1726675739668,8.0640562,128.2,128.16,7.8026]
[1726675740085,0.2636562,128.2,128.17,7.802]
[1726675740287,0.2636562,128.2,128.18,7.8015]
[1726675740599,0.2636562,128.2,128.19,7.8009]
[1726675740887,0.2636562,128.2,128.19,45.47460549]
[1726675741078,0.2636562,128.2,128.19,49.50246949]
[1726675741391,0.2636562,128.2,128.19,69.50246949]
[1726675743581,0.2741385,128.24,128.23,27.67107]
[1726675746004,0.2741385,128.24,128.23,19.87267]
[1726675746408,0.2741385,128.24,128.23,70.55537046]
[1726675746883,0.2741385,128.24,128.23,90.55537046]
[1726675747693,0.2741385,128.24,128.23,88.99616949]
[1726675748010,14.7305,128.31,128.28,0.25098]
[1726675748011,7.7938,128.31,128.28,0.25098]
[1726675748190,0.248887,128.29,128.28,8.17187]
[1726675748380,0.248887,128.29,128.28,0.37647]
[1726675749900,0.248887,128.29,128.28,8.17187]
[1726675750096,0.248887,128.29,128.28,0.37647]
[1726675750506,0.248887,128.29,128.27,0.37647]
[1726675750682,0.248887,128.29,128.23,27.2932]
[1726675750890,0.248887,128.29,128.23,37.04311549]
[1726675751102,8.043787,128.29,128.25,7.7971]
[1726675751806,0.248887,128.29,128.26,9.35554124]
[1726675752108,0.248887,128.29,128.27,9.35498066]
[1726675752287,0.248887,128.29,128.28,0.12549]
[1726675753726,0.248887,128.29,128.28,0.37647]
[1726675754498,8.043787,128.29,128.25,27.2898]
[1726675754816,8.043787,128.29,128.26,0.37647]
[1726675755381,0.248887,128.29,128.26,8.17297]
[1726675755607,0.248887,128.29,128.28,0.37647]
[1726675756894,0.248887,128.29,128.28,8.17187]
[1726675758323,0.248887,128.29,128.28,0.37647]
[1726675758609,0.248887,128.29,128.28,8.17187]
[1726675760029,0.248887,128.29,128.28,0.37647]
[1726675760721,0.248887,128.29,128.28,1.93524975]
[1726675761026,0.248887,128.29,128.28,0.37647]
[1726675761199,0.248887,128.29,128.28,8.17187]
[1726675761526,0.248887,128.29,128.28,9.73062705]
[1726675762399,0.248887,128.29,128.28,8.17187]
[1726675762694,0.248887,128.29,128.28,9.73053062]
[1726675762896,0.248887,128.29,128.28,27.27874611]
[1726675763210,0.248887,128.29,128.28,51.05563011]
[1726675763399,0.248887,128.29,128.28,99.49696949]
[1726675763997,0.3426215,128.29,128.28,99.49696949]
[1726675764401,0.3426215,128.29,128.28,121.05523331]
[1726675764608,0.248887,128.33,128.32,27.65197]
[1726675766409,0.248887,128.33,128.32,51.428854]
[1726675766602,0.248887,128.33,128.32,27.65197]
[1726675767817,0.248887,128.33,128.32,19.85897]
[1726675768014,0.248887,128.33,128.32,27.65197]
[1726675768341,0.248887,128.33,128.32,19.73348]
[1726675768635,0.248887,128.33,128.32,27.52648]
[1726675769323,0.248887,128.33,128.32,0.37647]
[1726675769518,0.248887,128.33,128.32,8.16947]
[1726675769716,0.248887,128.33,128.32,0.37647]
[1726675770034,0.248887,128.33,128.3,7.7941]
[1726675770238,0.248887,128.33,128.28,19.4871]
[1726675770934,8.041487,128.33,128.29,7.7944]
[1726675771122,0.248887,128.33,128.28,19.4871]
[1726675771321,7.7931,128.32,128.28,27.2821]
[1726675771517,8.041387,128.33,128.28,27.2821]
[1726675771713,8.041387,128.33,128.29,7.7946]
[1726675771936,0.248887,128.33,128.3,7.91959]
[1726675772625,0.248887,128.33,128.32,0.12549]
[1726675775030,0.248887,128.33,128.31,0.12549]
[1726675775625,0.248887,128.33,128.31,9.72837255]
[1726675775942,0.248887,128.33,128.31,8.16987]
[1726675776314,0.248887,128.33,128.32,7.793]
[1726675776632,0.248887,128.33,128.32,0.37647]
[1726675777018,0.248887,128.33,128.32,0.12549]
[1726675777219,0.248887,128.33,128.28,0.25098]
[1726675777728,0.248887,128.33,128.27,43.174]
[1726675777931,7.7932,128.32,128.28,7.795]
[1726675778243,7.7932,128.32,128.29,9.35349908]
[1726675778439,7.7932,128.32,128.28,7.7952]
[1726675778745,7.794,128.31,128.27,27.2847]
[1726675779046,14.979387,128.33,128.27,19.4888]
[1726675779214,7.7943,128.3,128.27,19.4888]
[1726675779415,7.7943,128.3,128.26,7.7962]
[1726675780657,14.979387,128.33,128.26,19.4911]
[1726675780955,14.979387,128.33,128.27,0.37647]
[1726675782150,14.979387,128.33,128.29,0.25098]
[1726675782356,14.979387,128.33,128.29,8.04568]
[1726675782562,14.979387,128.33,128.3,7.7942]
[1726675783060,0.248887,128.33,128.3,7.7942]
[1726675783428,0.248887,128.33,128.31,0.12549]
[1726675783954,8.041287,128.33,128.3,0.12549]
[1726675784157,0.248887,128.33,128.31,7.91909]
[1726675785035,0.248887,128.33,128.32,0.37647]
[1726675785430,0.248887,128.33,128.32,8.16947]
[1726675791363,0.248887,128.33,128.32,0.37647]
[1726675791735,0.248887,128.33,128.3,27.2791]
[1726675791962,8.041487,128.33,128.3,19.4851]
[1726675792148,8.041487,128.33,128.3,27.2793]
[1726675792349,0.248887,128.33,128.31,7.7936]
[1726675793436,0.248887,128.33,128.32,0.12549]
[1726675795663,0.248887,128.33,128.32,9.72783573]
[1726675796245,0.248887,128.33,128.32,29.21033573]
[1726675797258,0.248887,128.33,128.32,27.65197]
[1726675798172,0.248887,128.33,128.32,19.85897]
[1726675798940,0.248887,128.33,128.32,0.12549]
[1726675800075,0.248887,128.33,128.32,0.25098]
[1726675800575,8.041387,128.33,128.29,27.2816]
[1726675800744,0.248887,128.33,128.3,7.7939]
[1726675801777,8.041287,128.33,128.3,0.37647]
[1726675802070,8.041287,128.33,128.29,27.2816]
[1726675802787,8.041287,128.33,128.28,0.25098]
[1726675802788,7.793,128.32,128.28,7.7952]
[1726675802964,7.7936,128.31,128.27,7.7958]
[1726675803372,0.248887,128.33,128.28,19.4884]
[1726675803571,0.248887,128.33,128.31,7.7935]
[1726675804088,0.248887,128.33,128.3,27.2792]
[1726675806269,7.7931,128.32,128.3,0.12549]
[1726675806476,0.248887,128.33,128.3,0.12549]
[1726675807387,8.041287,128.33,128.3,0.12549]
[1726675808078,0.248887,128.33,128.31,0.25098]
[1726675808266,0.248887,128.33,128.32,7.793]
[1726675808459,0.248887,128.33,128.32,9.72793308]
[1726675809387,0.248887,128.33,128.32,8.16947]
[1726675809971,0.248887,128.33,128.32,51.05262789]
[1726675810167,0.248887,128.33,128.32,49.49456949]
[1726675810566,0.248887,128.33,128.32,69.49456949]
[1726675812007,0.248887,128.37,128.36,27.2669]
[1726675812196,0.248887,128.37,128.36,27.64337]
[1726675815488,0.248887,128.37,128.33,19.4804]
[1726675815800,0.248887,128.37,128.33,27.2727]
[1726675816294,0.248887,128.37,128.34,7.7916]
[1726675816687,0.248887,128.37,128.35,0.12549]
[1726675817376,0.248887,128.37,128.35,7.7905]
[1726675817570,0.248887,128.37,128.36,0.37647]
[1726675817770,0.248887,128.37,128.36,8.16697]
[1726675819288,0.248887,128.37,128.36,0.37647]
[1726675820079,0.248887,128.37,128.36,8.16697]
[1726675820272,0.248887,128.37,128.36,25.71518549]
[1726675820490,0.248887,128.37,128.36,27.27293122]
[1726675820914,0.248887,128.37,128.36,47.27293122]
[1726675821095,0.248887,128.37,128.36,71.04981522]
[1726675821296,0.248887,128.37,128.36,92.86201522]
[1726675821497,0.248887,128.37,128.36,91.30426949]
[1726675823796,0.248887,128.37,128.36,67.52738549]
[1726675824101,0.248887,128.37,128.36,29.97917]
[1726675824281,0.248887,128.37,128.36,53.756054]
[1726675825812,0.248887,128.37,128.36,55.3134661]
[1726675825981,0.248887,128.37,128.36,73.756054]
[1726675826182,0.248887,128.37,128.36,75.31333912]
[1726675826385,0.248887,128.41,128.4,27.63497]
[1726675826607,0.248887,128.41,128.4,45.18318549]
[1726675827183,0.248887,128.41,128.4,68.96006949]
[1726675827818,0.248887,128.41,128.4,70.51709295]
[1726675827990,0.248887,128.41,128.4,68.96006949]
[1726675828192,0.248887,128.41,128.4,88.96006949]
[1726675829013,0.248887,128.44,128.43,27.2521]
[1726675829216,0.248887,128.44,128.43,27.62857]
[1726675829395,0.248887,128.44,128.42,17.54821549]
[1726675829583,0.248887,128.44,128.41,7.7874]
[1726675829988,0.248887,128.44,128.35,3.10146567]
[1726675829989,0.248887,128.44,128.37,19.4741]
[1726675830298,0.248887,128.44,128.39,7.7883]
[1726675830808,8.034787,128.44,128.39,7.7883]
[1726675831200,8.034787,128.44,128.4,7.788]
[1726675831700,7.7868,128.43,128.39,19.4713]
[1726675832489,14.7305,128.43,128.36,7.7905]
[1726675832705,14.7305,128.43,128.35,21.5588]
[1726675832905,7.7871,128.42,128.37,7.7895]
[1726675833106,7.7871,128.42,128.38,7.7893]
[1726675833298,22.517,128.43,128.39,1.55758024]
[1726675833497,22.517,128.43,128.39,9.34608024]
[1726675833702,14.7305,128.43,128.4,8.03908]
[1726675833886,8.034787,128.44,128.4,8.03908]
[1726675834083,0.248887,128.44,128.4,0.25098]
[1726675834291,0.248887,128.44,128.42,0.12549]
[1726675834791,0.248887,128.44,128.43,7.7863]
[1726675835003,0.248887,128.44,128.43,8.03728]
[1726675835395,0.248887,128.44,128.43,8.16277]
[1726675835988,0.248887,128.44,128.43,0.12549]
[1726675836314,0.248887,128.44,128.42,8.03788]
[1726675837090,0.248887,128.44,128.42,0.25098]
[1726675838323,0.248887,128.44,128.42,0.12549]
[1726675839014,0.248887,128.44,128.42,9.72045307]
[1726675839217,0.248887,128.44,128.43,8.16277]
[1726675841207,0.248887,128.44,128.43,25.71098549]
[1726675842619,0.248887,128.44,128.43,8.16277]
[1726675847032,0.248887,128.44,128.43,27.62857]
[1726675849434,0.248887,128.44,128.43,101.405454]
[1726675850436,0.248887,128.44,128.43,27.62857]
[1726675850730,0.248887,128.44,128.43,27.2521]
[1726675852423,0.248887,128.44,128.43,27.62857]
[1726675854029,0.248887,128.44,128.43,38.81461255]
[1726675854408,0.248887,128.48,128.46,19.4606]
[1726675854615,0.248887,128.48,128.47,11.18604255]
[1726675854824,0.248887,128.48,128.45,11.31153255]
[1726675855239,0.248887,128.48,128.46,0.12549]
[1726675855438,8.032187,128.48,128.45,0.12549]
[1726675855639,0.248887,128.48,128.45,0.12549]
[1726675856038,7.8293476,128.48,128.45,0.12549]
[1726675856622,7.7843,128.47,128.44,11.18604255]
[1726675856836,7.7843,128.47,128.43,38.43674255]
[1726675857037,7.8293476,128.48,128.43,38.43674255]
[1726675857250,7.8293476,128.48,128.44,11.18604255]
[1726675857628,7.7839,128.47,128.44,11.18604255]
[1726675857955,1.60551218,128.48,128.42,0.12549]
[1726675858158,7.7852,128.45,128.41,18.97314255]
[1726675858649,7.7846,128.46,128.42,7.7868]
[1726675858855,7.7846,128.46,128.42,18.97284255]
[1726675859354,7.7846,128.46,128.42,38.44004255]
[1726675860063,7.7841,128.47,128.43,19.09773255]
[1726675860252,7.7845,128.46,128.43,0.12549]
[1726675860753,7.7852,128.45,128.42,30.65324255]
[1726675860926,7.7852,128.45,128.41,7.7874]
[1726675861131,7.7863,128.43,128.39,27.259]
[1726675861357,7.7857,128.44,128.4,7.788]
[1726675861557,7.7857,128.44,128.4,18.97404255]
[1726675861854,7.7853,128.45,128.4,18.97404255]
[1726675862357,7.7853,128.45,128.41,18.97344255]
[1726675863042,7.7857,128.44,128.4,18.97404255]
[1726675863356,7.7847,128.46,128.42,7.7867]
[1726675863560,14.7305,128.47,128.41,38.56723255]
[1726675863561,7.7852,128.45,128.41,38.56723255]
[1726675863861,7.7852,128.45,128.41,27.38119]
[1726675864560,7.7857,128.44,128.41,19.59379]
[1726675864731,7.7857,128.44,128.4,0.37647]
[1726675865244,7.7864,128.43,128.4,0.25098]
[1726675865425,7.7864,128.43,128.39,18.97454255]
[1726675865630,7.7875,128.41,128.38,19.4725]
[1726675866038,7.7875,128.41,128.37,7.7895]
[1726675866440,1.55966458,128.4,128.35,19.7034548]
[1726675866641,14.7305,128.42,128.35,19.7034548]
[1726675866863,7.7894,128.38,128.35,0.2263548]
[1726675867729,34.1992,128.42,128.35,0.2263548]
[1726675867730,7.7888,128.39,128.35,0.2263548]
[1726675867956,34.1992,128.42,128.35,0.2263548]
[1726675867957,7.7896,128.38,128.35,0.2263548]
[1726675868745,7.7902,128.37,128.35,0.2263548]
[1726675869055,34.1992,128.42,128.35,0.2263548]
[1726675869449,7.7877,128.41,128.36,7.7902]
[1726675871447,7.7882,128.4,128.36,0.25098]
[1726675871758,7.7887,128.39,128.36,0.25098]
[1726675872175,7.7887,128.39,128.35,19.7034548]
[1726675872462,7.7895,128.38,128.35,19.7034548]
[1726675873501,14.7305,128.42,128.35,19.7034548]
[1726675873502,7.7889,128.39,128.35,19.7034548]
[1726675874791,23.776884,128.41,128.35,0.2263548]
[1726675875073,43.246184,128.41,128.35,0.2263548]
[1726675875479,7.7905,128.36,128.35,0.2263548]
[1726675877079,7.7904,128.37,128.35,0.2263548]
[1726675878076,23.776884,128.41,128.35,0.2263548]
[1726675878279,7.7889,128.39,128.35,8.0170548]
[1726675878473,7.7889,128.39,128.35,9.57504582]
[1726675878659,7.7883,128.4,128.36,8.04148]
[1726675878978,14.7305,128.42,128.35,8.0174548]
[1726675878979,7.7888,128.39,128.35,8.0174548]
[1726675879185,16.29016458,128.42,128.35,0.2263548]
[1726675879186,7.7894,128.38,128.35,0.2263548]
[1726675879352,7.7895,128.38,128.35,0.2263548]
[1726675879556,14.7305,128.42,128.35,0.2263548]
[1726675880178,7.7895,128.38,128.35,0.2263548]
[1726675881466,7.79,128.37,128.35,0.2263548]
[1726675881654,7.7895,128.38,128.35,0.2263548]
[1726675881854,19.4692,128.41,128.35,8.0174548]
[1726675881855,7.7889,128.39,128.35,8.0174548]
[1726675882981,7.7894,128.38,128.35,0.2263548]
[1726675884058,7.7887,128.39,128.35,8.0173548]
[1726675884586,7.7887,128.39,128.35,0.2263548]
[1726675886094,7.7882,128.4,128.36,0.25098]
[1726675886272,7.788,128.41,128.37,7.7899]
[1726675886585,35.55102601,128.45,128.38,19.31834657]
[1726675886781,7.7867,128.43,128.39,7.7886]
[1726675886973,7.7869,128.42,128.38,8.04018]
[1726675887170,0.0458476,128.46,128.4,0.12549]
[1726675887364,0.0458476,128.46,128.4,0.25098]
[1726675888392,7.7863,128.43,128.4,0.12549]
[1726675888689,7.787,128.42,128.39,19.4714]
[1726675888986,7.787,128.42,128.37,15.53369]
[1726675888987,7.7887,128.39,128.37,15.4082]
[1726675892069,7.7887,128.39,128.35,14.3640548]
[1726675892272,7.7895,128.38,128.35,6.5730548]
[1726675894201,19.4674,128.42,128.35,6.5730548]
[1726675894202,7.7889,128.39,128.35,14.3641548]
[1726675894583,7.7893,128.38,128.35,14.3641548]
[1726675894982,7.7893,128.38,128.35,6.5730548]
[1726675897109,7.7899,128.37,128.35,6.5730548]
[1726675897286,7.7899,128.37,128.35,0.2263548]
[1726675898179,7.7891,128.39,128.35,9.57556683]
[1726675898378,23.776884,128.42,128.36,7.7901]
[1726675898379,7.7882,128.4,128.36,7.7901]
[1726675898991,7.7882,128.4,128.37,0.25098]
[1726675899193,9.34846458,128.39,128.36,7.7901]
[1726675899497,7.7888,128.39,128.35,19.8297448]
[1726675899698,7.789,128.39,128.36,1.93447502]
[1726675899904,7.789,128.39,128.36,0.37647]
[1726675900610,19.4671,128.43,128.36,0.37647]
[1726675900611,7.7884,128.4,128.36,8.16697]
[1726675900916,7.7884,128.4,128.36,9.72486894]
[1726675901221,7.7884,128.4,128.36,8.16697]
[1726675901906,7.7889,128.39,128.36,0.37647]
[1726675903288,7.7895,128.38,128.36,0.12549]
[1726675903489,7.7889,128.39,128.36,0.12549]
[1726675903790,7.7882,128.4,128.36,7.91579]
[1726675903984,7.7882,128.4,128.36,0.12549]
[1726675904199,23.776884,128.42,128.36,0.37647]
[1726675904508,14.7305,128.44,128.38,0.37647]
[1726675904711,14.7305,128.44,128.4,7.7877]
[1726675904712,7.7859,128.44,128.4,7.7877]
[1726675904888,0.0458476,128.46,128.41,0.12549]
[1726675905089,0.0458476,128.46,128.41,1.93376988]
[1726675905296,7.7854,128.45,128.41,8.16387]
[1726675905502,0.0458476,128.46,128.41,19.84487]
[1726675906102,7.7851,128.45,128.41,27.63197]
[1726675907010,7.8304476,128.46,128.41,27.63197]
[1726675907188,7.8304476,128.46,128.42,14.3217]
[1726675907388,7.8304476,128.46,128.42,6.5348]
[1726675907911,7.8304476,128.46,128.42,14.3217]
[1726675908585,0.0458476,128.46,128.43,19.84187]
[1726675908790,0.0458476,128.46,128.43,21.39897157]
[1726675909295,0.0458476,128.46,128.45,7.91059]
[1726675909497,0.0458476,128.46,128.45,24.48247]
[1726675910206,0.0458476,128.46,128.45,16.69737]
[1726675911317,0.0458476,128.46,128.45,16.3209]
[1726675911888,0.0458476,128.46,128.45,24.48247]
[1726675912113,0.0458476,128.46,128.45,16.69737]
[1726675912699,0.0458476,128.46,128.45,16.44639]
[1726675914116,7.7851,128.45,128.43,0.25098]
[1726675914315,7.7851,128.45,128.42,23.0957]
[1726675914618,7.7853,128.45,128.42,23.0957]
[1726675915002,7.7857,128.44,128.42,23.0957]
[1726675915226,7.7863,128.43,128.42,16.5609]
[1726675915518,7.7863,128.43,128.4,19.4693]
[1726675916516,7.7863,128.43,128.41,0.12549]
[1726675916913,7.7859,128.44,128.41,0.12549]
[1726675917823,23.776884,128.47,128.41,0.12549]
[1726675917824,7.7853,128.45,128.41,0.37647]
[1726675918008,7.7853,128.45,128.41,8.16387]
[1726675918406,7.7857,128.44,128.41,0.37647]
[1726675918605,7.7868,128.43,128.41,0.37647]
[1726675919125,7.7858,128.44,128.41,0.37647]
[1726675919512,7.7853,128.45,128.41,8.16397]
[1726675919723,7.9118974,128.46,128.42,7.7869]
[1726675919929,7.9118974,128.46,128.43,0.25098]
[1726675920303,7.7851,128.45,128.43,0.25098]
[1726675920507,7.7857,128.44,128.42,0.12549]
[1726675921900,0.1272974,128.46,128.39,39.09309529]
[1726675921901,7.7864,128.43,128.39,29.372]
[1726675922524,0.1272974,128.46,128.39,29.372]
[1726675922707,0.1272974,128.46,128.4,19.4703]
[1726675922907,7.7856,128.45,128.41,7.7874]
[1726675923728,7.7856,128.45,128.42,7.7869]
[1726675923915,7.9119974,128.46,128.43,0.12549]
[1726675924119,7.7851,128.45,128.43,0.37647]
[1726675924318,7.9119974,128.46,128.43,0.37647]
[1726675924825,0.1272974,128.46,128.43,0.37647]
[1726675925334,7.9118974,128.46,128.43,0.37647]
[1726675926407,7.7851,128.45,128.43,0.37647]
[1726675926608,7.9119974,128.46,128.43,0.37647]
[1726675926923,0.1272974,128.46,128.43,8.16267]
[1726675927121,7.9117974,128.46,128.43,0.37647]
[1726675927639,7.9117974,128.46,128.43,9.71978535]
[1726675928508,0.1272974,128.46,128.43,8.16277]
[1726675930741,0.1272974,128.46,128.44,15.4414]
[1726675931118,7.7851,128.45,128.44,15.4414]
[1726675931328,0.1272974,128.46,128.42,0.12549]
[1726675931329,7.7857,128.44,128.42,0.12549]
[1726675931513,7.7857,128.44,128.41,15.9135]
[1726675931514,7.7865,128.43,128.41,15.9135]
[1726675932042,0.1272974,128.46,128.41,15.9135]
[1726675932043,7.7859,128.44,128.41,15.9135]
[1726675933125,7.7854,128.45,128.42,0.12549]
[1726675933339,7.9119974,128.46,128.42,7.91239]
[1726675933844,7.9119974,128.46,128.43,8.03728]
[1726675934337,7.9119974,128.46,128.43,0.12549]
[1726675934837,7.9119974,128.46,128.43,7.91179]
[1726675935041,7.9119974,128.46,128.44,0.12549]
[1726675935720,7.9119974,128.46,128.43,0.25098]
[1726675936842,0.1272974,128.46,128.43,8.03688]
[1726675937948,0.1272974,128.46,128.45,0.12549]
[1726675939016,7.9117974,128.46,128.43,0.12549]
[1726675939222,0.1272974,128.46,128.45,0.12549]
[1726675939417,0.1272974,128.46,128.45,0.25098]
[1726675940341,7.9118974,128.46,128.43,0.12549]